bitfinex-derivatives/quotes_BTCF0:USTF0_20250930
["timestamp","ask_amount","ask_price","bid_price","bid_amount"]
[1759274875333,1.21401919,114030.0,114020.0,0.11518004]
[1759274875531,1.57481919,114030.0,114020.0,0.18705748]
[1759274876032,1.57481919,114030.0,114020.0,0.09936858]
[1759274880543,1.71456908,114030.0,114020.0,0.09936858]
[1759274884244,1.7144967,114030.0,114020.0,0.0364]
[1759274886245,1.70397106,114030.0,114020.0,0.11518004]
[1759274886445,0.9126967,114030.0,114020.0,0.11518004]
[1759274886645,1.7140567,114030.0,114020.0,0.20286984]
[1759274887551,1.7140567,114030.0,114020.0,0.11518004]
[1759274890153,0.9126967,114030.0,114020.0,0.11518004]
[1759274890550,1.38987109,114030.0,114020.0,0.43924565]
[1759274890955,1.7139367,114030.0,114020.0,0.43924565]
[1759274891553,1.7139367,114030.0,114020.0,0.11518004]
[1759274892055,0.58863109,114030.0,114020.0,0.20286984]
[1759274892256,1.7138967,114030.0,114020.0,0.20286984]
[1759274893257,0.9126967,114030.0,114020.0,0.20286984]
[1759274893457,1.38983109,114030.0,114020.0,0.20286984]
[1759274894357,0.58863109,114030.0,114020.0,0.20286984]
[1759274894558,0.58863109,114030.0,114020.0,0.52693545]
[1759274894753,1.38979109,114030.0,114020.0,0.52693545]
[1759274894949,0.58863109,114030.0,114020.0,0.52693545]
[1759274895156,1.02899109,114030.0,114020.0,1.28773545]
[1759274895556,1.02859109,114030.0,114020.0,1.28773545]
[1759274895757,1.02899109,114030.0,114020.0,1.28773545]
[1759274896061,0.21730595,114030.0,114020.0,1.28773545]
[1759274896266,1.01846595,114030.0,114020.0,1.28773545]
[1759274896666,0.21730595,114030.0,114020.0,1.28773545]
[1759274896859,1.01842595,114030.0,114020.0,1.28773545]
[1759274902373,1.01842595,114030.0,114020.0,0.96366984]
[1759274902668,1.01842595,114030.0,114020.0,1.28773545]
[1759274904168,0.94126989,114030.0,114020.0,1.28773545]
[1759274904570,0.94086989,114030.0,114020.0,1.28773545]
[1759274904773,0.94126989,114030.0,114020.0,1.28773545]
[1759274905375,0.94126989,114030.0,114020.0,1.20895541]
[1759274906175,0.93074487,114030.0,114020.0,1.20895541]
[1759274908377,0.93074487,114030.0,114020.0,1.28773823]
[1759274910272,0.80152,114030.0,114020.0,1.28773823]
[1759274911578,0.0004,114030.0,114020.0,1.28773823]
[1759274911780,0.8012,114030.0,114020.0,1.28773823]
[1759274913481,0.0004,114030.0,114020.0,1.28773823]
[1759274913676,0.80116,114030.0,114020.0,1.28773823]
[1759274916487,0.80116,114030.0,114020.0,1.20895541]
[1759274919686,0.80116,114030.0,114020.0,0.80895541]
[1759274921388,0.801,114030.0,114020.0,0.80895541]
[1759274922587,0.801,114030.0,114020.0,0.4848898]
[1759274922788,0.801,114030.0,114020.0,0.80895541]
[1759274926292,0.801,114030.0,114020.0,0.81024176]
[1759274926493,0.801,114030.0,114020.0,0.88902458]
[1759274927589,0.801,114030.0,114020.0,0.56495897]
[1759274927789,0.801,114030.0,114020.0,0.88902458]
[1759274929892,0.79047518,114030.0,114020.0,0.88902458]
[1759274930593,0.4492755,114040.0,114030.0,0.1226521]
[1759274930795,1.2496755,114040.0,114030.0,0.1226521]
[1759274931398,1.2496755,114040.0,114030.0,0.12393845]
[1759274932500,1.57370111,114040.0,114030.0,0.03625635]
[1759274934600,1.57370111,114040.0,114030.0,0.12393915]
[1759274935601,1.2496355,114040.0,114030.0,0.12393915]
[1759274935900,1.57370111,114040.0,114030.0,0.12393915]
[1759274937099,1.57370111,114040.0,114030.0,0.13282727]
[1759274939002,1.57370111,114040.0,114030.0,0.04514447]
[1759274939396,1.2496355,114040.0,114030.0,0.04514447]
[1759274939601,1.57370111,114040.0,114030.0,0.09928291]
[1759274940003,1.93450111,114040.0,114030.0,0.03625635]
[1759274940790,1.92397586,114040.0,114030.0,0.03625635]
[1759274940995,1.92397586,114040.0,114030.0,0.11503917]
[1759274944197,2.24791981,114040.0,114030.0,0.11503917]
[1759274945202,1.59991025,114040.0,114030.0,0.11503917]
[1759274945402,2.24791981,114040.0,114030.0,0.11503917]
[1759274946994,2.64791981,114040.0,114030.0,0.11503917]
[1759274947195,2.64791981,114040.0,114030.0,0.06432495]
[1759274949200,2.64791981,114040.0,114030.0,0.00128635]
[1759274951200,2.64791981,114040.0,114030.0,0.06432495]
[1759274951605,1.84755981,114040.0,114030.0,0.06432495]
[1759274951904,2.64767981,114040.0,114030.0,0.06432495]
[1759274952205,1.99967025,114040.0,114030.0,0.06432495]
[1759274952399,2.64767981,114040.0,114030.0,0.00128635]
[1759274954306,1.84755981,114040.0,114030.0,0.00128635]
[1759274954506,2.64767981,114040.0,114030.0,0.00128635]
[1759274955210,1.84755981,114040.0,114030.0,0.00128635]
[1759274955411,2.64767981,114040.0,114030.0,0.00128635]
[1759274956011,1.84755981,114040.0,114030.0,0.00128635]
[1759274956309,2.64767981,114040.0,114030.0,0.00128635]
[1759274956711,2.71920516,114040.0,114030.0,0.00128635]
[1759274956904,1.91908516,114040.0,114030.0,0.00128635]
[1759274957102,2.71916516,114040.0,114030.0,0.00128635]
[1759274962210,3.04316994,114040.0,114030.0,0.00128635]
[1759274963810,2.71916516,114040.0,114030.0,0.00128635]
[1759274964517,1.91908516,114040.0,114030.0,0.00128635]
[1759274964712,0.0876829,114030.0,114020.0,0.0630386]
[1759274964920,0.0876906,114020.0,114010.0,0.01365]
[1759274965209,1.88228454,114020.0,114010.0,0.01365]
[1759274965416,2.20628932,114020.0,114010.0,0.01365]
[1759274965811,0.0876985,114010.0,114000.0,0.01381]
[1759274966005,0.77250328,114010.0,114000.0,0.09259282]
[1759274966511,1.57250328,114010.0,114000.0,0.09259282]
[1759274966714,1.57250328,114010.0,114000.0,0.01341]
[1759274966919,1.57250328,114010.0,114000.0,0.01381]
[1759274967121,1.58135379,114010.0,114000.0,0.01381]
[1759274968323,1.90535857,114010.0,114000.0,0.01381]
[1759274969922,1.10535857,114010.0,114000.0,0.01381]
[1759274970127,1.90539857,114010.0,114000.0,0.01381]
[1759274971126,0.78135379,114010.0,114000.0,0.01381]
[1759274971327,1.58139379,114010.0,114000.0,0.01381]
[1759274974329,0.78135379,114010.0,114000.0,0.01381]
[1759274974531,1.58139379,114010.0,114000.0,0.01381]
[1759274975920,1.50535857,114010.0,114000.0,0.01381]
[1759274976124,2.30539857,114010.0,114000.0,0.01341]
[1759274976325,2.30539857,114010.0,114000.0,0.01381]
[1759274976927,1.50535857,114010.0,114000.0,0.01381]
[1759274977435,2.30535857,114010.0,114000.0,0.01381]
[1759274977630,2.30539857,114010.0,114000.0,0.01381]
[1759274979536,1.90539857,114010.0,114000.0,0.01381]
[1759274980140,1.10535857,114010.0,114000.0,0.01381]
[1759274980436,1.90535857,114010.0,114000.0,0.01381]
[1759274984930,1.90535857,114010.0,114000.0,0.0004]
[1759274985839,1.90531857,114010.0,114000.0,0.0004]
[1759274988345,1.10535857,114010.0,114000.0,0.0004]
[1759274988539,1.90527857,114010.0,114000.0,0.0004]
[1759274989943,1.90527857,114010.0,114000.0,0.01433]
[1759274991046,1.10535857,114010.0,114000.0,0.01433]
[1759274991346,1.90527857,114010.0,114000.0,0.01433]
[1759274991548,1.90523857,114010.0,114000.0,0.01433]
[1759274992549,2.26603857,114010.0,114000.0,0.01433]
[1759274993448,1.46615857,114010.0,114000.0,0.01433]
[1759274993641,2.26603857,114010.0,114000.0,0.01433]
[1759274999150,2.26603857,114010.0,114000.0,0.07726908]
[1759275000054,1.46615857,114010.0,114000.0,0.07726908]
[1759275000755,2.26591857,114010.0,114000.0,0.07726908]
[1759275004159,2.25166088,114010.0,114000.0,0.07726908]
[1759275004456,1.92791269,114010.0,114000.0,0.07726908]
[1759275014264,1.913655,114010.0,114000.0,0.07726908]
[1759275018562,1.913655,114010.0,114000.0,0.06333908]
[1759275018765,2.23791637,114010.0,114000.0,0.07656908]
[1759275020069,1.913655,114010.0,114000.0,0.07656908]
[1759275022070,0.78963363,114010.0,114000.0,0.07656908]
[1759275022269,1.913415,114010.0,114000.0,0.07656908]
[1759275023970,1.113895,114010.0,114000.0,0.07656908]
[1759275024175,1.89911709,114010.0,114000.0,0.07656908]
[1759275024574,0.77537572,114010.0,114000.0,0.07656908]
[1759275024772,1.89911709,114010.0,114000.0,0.07656908]
[1759275024973,1.89911709,114010.0,114000.0,0.09861908]
[1759275025674,1.89911709,114010.0,114000.0,0.07656908]
[1759275028475,1.89911709,114010.0,114000.0,0.09861908]
[1759275029276,1.89911709,114010.0,114000.0,0.07656908]
[1759275030071,1.17751709,114010.0,114000.0,0.07656908]
[1759275030374,1.89911709,114010.0,114000.0,0.07656908]
[1759275044395,1.17751709,114010.0,114000.0,0.07656908]
[1759275044590,1.89911709,114010.0,114000.0,0.07656908]
[1759275051794,2.24541204,114010.0,114000.0,0.0004]
[1759275052000,0.0877056,114000.0,113990.0,0.0008]
[1759275052201,0.0877056,114000.0,113980.0,0.09239282]
[1759275052202,0.0877133,113990.0,113980.0,0.09239282]
[1759275052393,1.54722586,113990.0,113980.0,0.01361]
[1759275053293,1.54722586,113990.0,113980.0,0.09279282]
[1759275053487,1.54722586,113990.0,113980.0,0.0004]
[1759275053693,0.087721,113980.0,113970.0,0.09239282]
[1759275053901,0.77278237,113980.0,113970.0,0.09319282]
[1759275054997,1.09704374,113980.0,113970.0,0.01441]
[1759275055198,1.09704374,113980.0,113970.0,0.09239282]
[1759275055400,1.16767353,113980.0,113970.0,0.01401]
[1759275055603,1.16767353,113980.0,113970.0,0.0004]
[1759275056103,0.0877285,113970.0,113960.0,0.10400282]
[1759275056303,1.89629124,113970.0,113960.0,0.10480282]
[1759275056603,1.89629124,113970.0,113960.0,0.10400282]
[1759275056802,1.89629124,113970.0,113960.0,0.10440282]
[1759275057003,1.09705124,113970.0,113960.0,0.10440282]
[1759275057198,1.89629124,113970.0,113960.0,0.10440282]
[1759275058806,1.89633124,113970.0,113960.0,0.10440282]
[1759275060605,1.90517718,113970.0,113960.0,0.10440282]
[1759275061198,1.10589718,113970.0,113960.0,0.10440282]
[1759275061400,1.10589718,113970.0,113960.0,0.12688282]
[1759275061602,1.90517718,113970.0,113960.0,0.12648282]
[1759275061896,1.90517718,113970.0,113960.0,0.12688282]
[1759275062303,1.0916359,113970.0,113960.0,0.12688282]
[1759275062503,1.8909159,113970.0,113960.0,0.12688282]
[1759275064008,1.0916359,113970.0,113960.0,0.12688282]
[1759275064199,1.8909159,113970.0,113960.0,0.12688282]
[1759275064710,1.0916359,113970.0,113960.0,0.12688282]
[1759275064910,1.8909159,113970.0,113960.0,0.12688282]
[1759275065713,1.0916359,113970.0,113960.0,0.12688282]
[1759275065913,1.8909159,113970.0,113960.0,0.12688282]
[1759275066313,1.89129254,113970.0,113960.0,0.12688282]
[1759275066711,1.09201254,113970.0,113960.0,0.12688282]
[1759275066912,1.0831666,113970.0,113960.0,0.12688282]
[1759275067111,1.8824466,113970.0,113960.0,0.12688282]
[1759275068209,1.0831666,113970.0,113960.0,0.12688282]
[1759275068410,0.43426722,113970.0,113960.0,0.45133251]
[1759275068602,0.75911691,113970.0,113960.0,0.52688282]
[1759275068806,1.55839691,113970.0,113960.0,0.52688282]
[1759275069009,1.55839691,113970.0,113960.0,0.53938282]
[1759275069512,1.55799691,113970.0,113960.0,0.53898282]
[1759275069810,0.77111665,113970.0,113960.0,0.54338282]
[1759275070006,0.44666696,113970.0,113960.0,0.54338282]
[1759275070218,0.44666696,113970.0,113960.0,0.5523355]
[1759275070219,1.24594696,113970.0,113960.0,0.5523355]
[1759275070514,1.57039665,113970.0,113960.0,0.4646]
[1759275072120,1.57039665,113970.0,113960.0,0.4521]
[1759275073217,1.24594696,113970.0,113960.0,0.4521]
[1759275073419,1.57039665,113970.0,113960.0,0.4521]
[1759275073616,0.77111665,113970.0,113960.0,0.4521]
[1759275073919,1.57043665,113970.0,113960.0,0.4521]
[1759275075519,1.57043665,113970.0,113960.0,0.53088282]
[1759275077214,1.57043665,113970.0,113960.0,0.4521]
[1759275077414,1.57043665,113970.0,113960.0,0.53088282]
[1759275078614,1.24598696,113970.0,113960.0,0.61861832]
[1759275078819,1.57043665,113970.0,113960.0,0.61861832]
[1759275079523,1.57043665,113970.0,113960.0,0.53088282]
[1759275079725,1.57043665,113970.0,113960.0,0.61861752]
[1759275080022,1.55617596,113970.0,113960.0,0.61861752]
[1759275081224,1.55617596,113970.0,113960.0,0.53088282]
[1759275081425,1.55617596,113970.0,113960.0,0.4521]
[1759275082624,1.23172627,113970.0,113960.0,0.4521]
[1759275082823,1.55617596,113970.0,113960.0,0.60297753]
[1759275083023,1.55617596,113970.0,113960.0,0.5398349]
[1759275083224,1.55617596,113970.0,113960.0,0.51522417]
[1759275084023,1.23172627,113970.0,113960.0,0.51522417]
[1759275084325,1.55617596,113970.0,113960.0,0.60295927]
[1759275084822,1.55617596,113970.0,113960.0,0.51522417]
[1759275086925,1.54564427,113970.0,113960.0,0.51522417]
[1759275089430,1.54564427,113970.0,113960.0,0.60295977]
[1759275090228,1.49696943,113970.0,113960.0,0.60295977]
[1759275090932,1.58469793,113970.0,113960.0,0.60295977]
[1759275095430,1.58469793,113970.0,113960.0,0.60296017]
[1759275099434,1.58469793,113970.0,113960.0,0.20296017]
[1759275102941,1.57416625,113970.0,113960.0,0.20296017]
[1759275103142,0.77484625,113970.0,113960.0,0.20296017]
[1759275103345,1.57504625,113970.0,113960.0,0.20296017]
[1759275105337,0.77484625,113970.0,113960.0,0.20296017]
[1759275105542,1.57484625,113970.0,113960.0,0.20296017]
[1759275108351,0.45039656,113970.0,113960.0,0.20296017]
[1759275108542,0.36306806,113970.0,113960.0,1.18873538]
[1759275108742,0.00226806,113970.0,113960.0,1.18873538]
[1759275108948,0.80334806,113970.0,113960.0,1.18873538]
[1759275109149,0.80294806,113970.0,113960.0,1.62846367]
[1759275109351,0.80334806,113970.0,113960.0,1.62846367]
[1759275110950,0.00226806,113970.0,113960.0,1.62846367]
[1759275111346,0.55138806,113970.0,113960.0,1.62846367]
[1759275111542,0.00186806,113970.0,113960.0,1.62846367]
[1759275111853,0.77062806,113970.0,113960.0,1.62846367]
[1759275112451,0.41296879,113990.0,113980.0,0.0877209]
[1759275112654,0.85715791,114000.0,113990.0,0.1243332]
[1759275112850,1.35774745,114000.0,113990.0,0.44878289]
[1759275113047,2.00664683,114000.0,113990.0,0.1243332]
[1759275113251,2.00704683,114000.0,113990.0,0.1243332]
[1759275115346,1.9850476,114000.0,113990.0,0.13309602]
[1759275118660,1.9850476,114000.0,113990.0,0.19619878]
[1759275120255,1.90352956,114000.0,113990.0,0.19619878]
[1759275120462,1.57847987,114000.0,113990.0,0.19619878]
[1759275120658,1.57807987,114000.0,113990.0,0.19619878]
[1759275120859,1.57847987,114000.0,113990.0,0.19619878]
[1759275123664,1.10048956,114000.0,113990.0,0.19619878]
[1759275123865,1.90252956,114000.0,113990.0,0.19619878]
[1759275128273,1.57784524,114000.0,113990.0,0.19619878]
[1759275129569,1.25363018,114000.0,113990.0,0.19619878]
[1759275129766,1.57784524,114000.0,113990.0,0.19619878]
[1759275131669,1.57784524,114000.0,113990.0,0.18743596]
[1759275132470,0.77580524,114000.0,113990.0,0.18743596]
[1759275132670,1.57656524,114000.0,113990.0,0.18743596]
[1759275132869,1.57696524,114000.0,113990.0,0.18743596]
[1759275133267,0.36388108,114000.0,113990.0,0.91165102]
[1759275133468,0.0004,114000.0,113990.0,0.91165102]
[1759275133675,0.0877031,114010.0,114000.0,0.03662]
[1759275133875,0.0885031,114010.0,114000.0,0.44854076]
[1759275134072,0.8887831,114010.0,114000.0,0.1243257]
[1759275134274,0.0881031,114010.0,114000.0,0.1243257]
[1759275134477,0.8891031,114010.0,114000.0,0.1243257]
[1759275134973,0.8014,114010.0,114000.0,0.1243257]
[1759275135169,0.801,114010.0,114000.0,0.1243257]
[1759275135369,0.8890972,114010.0,114000.0,0.1243257]
[1759275135770,0.8014,114010.0,114000.0,0.44854076]
[1759275136174,0.80132,114010.0,114000.0,0.44854076]
[1759275137579,0.8890174,114010.0,114000.0,0.44854076]
[1759275138280,0.80132,114010.0,114000.0,0.80934076]
[1759275139083,0.80092,114010.0,114000.0,1.20934076]
[1759275139287,0.80132,114010.0,114000.0,1.20934076]
[1759275139973,0.8890185,114010.0,114000.0,0.8851257]
[1759275141476,1.21323356,114010.0,114000.0,0.8851257]
[1759275141682,0.8890185,114010.0,114000.0,0.8851257]
[1759275145582,0.87849091,114010.0,114000.0,0.94822846]
[1759275149078,0.8883385,114010.0,114000.0,0.94822846]
[1759275149279,0.0880985,114010.0,114000.0,0.94822846]
[1759275149583,0.8882585,114010.0,114000.0,0.94822846]
[1759275151184,0.8882585,114010.0,114000.0,1.27244352]
[1759275151381,0.8882185,114010.0,114000.0,1.27244352]
[1759275152786,0.8882185,114010.0,114000.0,0.94822846]
[1759275155889,1.21243356,114010.0,114000.0,0.94822846]
[1759275159192,0.41231356,114010.0,114000.0,0.94822846]
[1759275159383,1.21199356,114010.0,114000.0,0.54822846]
[1759275159584,0.8877785,114010.0,114000.0,0.54822846]
[1759275160385,1.57279356,114010.0,114000.0,0.09972276]
[1759275160585,1.57279356,114010.0,114000.0,0.10012276]
[1759275165392,1.57279356,114010.0,114000.0,0.03702]
[1759275167091,1.97279356,114010.0,114000.0,0.0004]
[1759275167394,1.97263356,114010.0,114000.0,0.06350276]
[1759275167596,2.29684862,114010.0,114000.0,0.06310276]
[1759275167787,1.97263356,114010.0,114000.0,0.06350276]
[1759275168492,2.29684862,114010.0,114000.0,0.06350276]
[1759275168789,0.0877063,114000.0,113990.0,0.01479]
[1759275168989,1.08640772,114000.0,113990.0,0.01399]
[1759275169196,1.08640772,114000.0,113990.0,0.01439]
[1759275169392,1.08640772,114000.0,113990.0,0.01399]
[1759275169595,1.08640772,114000.0,113990.0,0.01439]
[1759275170491,2.28608772,114000.0,113990.0,0.01439]
[1759275170698,2.28608772,114000.0,113990.0,0.01399]
[1759275170894,2.28608772,114000.0,113990.0,0.01439]
[1759275171788,0.087714,113990.0,113980.0,0.0135]
[1759275171995,0.77272906,113990.0,113980.0,0.0135]
[1759275172492,0.77272906,113990.0,113980.0,0.0139]
[1759275172901,1.57244906,113990.0,113980.0,0.0139]
[1759275173095,1.57244906,113990.0,113980.0,0.0135]
[1759275173398,1.57240906,113990.0,113980.0,0.0139]
[1759275175495,1.97240906,113990.0,113980.0,0.0139]
[1759275175694,1.97240906,113990.0,113980.0,0.0135]
[1759275175893,0.0877211,113980.0,113970.0,0.0143]
[1759275176090,1.09695122,113980.0,113970.0,0.0008]
[1759275176301,0.0877288,113970.0,113960.0,0.02649]
[1759275176489,1.89647892,113970.0,113960.0,0.02649]
[1759275176994,1.90543822,113970.0,113960.0,0.02649]
[1759275177295,1.90543822,113970.0,113960.0,0.02689]
[1759275177493,2.30543822,113970.0,113960.0,0.02689]
[1759275177695,2.30543822,113970.0,113960.0,0.02649]
[1759275177889,2.30543822,113970.0,113960.0,0.02689]
[1759275178098,2.30547822,113970.0,113960.0,0.02649]
[1759275178295,2.30547822,113970.0,113960.0,0.02689]
[1759275179694,2.30547822,113970.0,113960.0,0.0129]
[1759275180197,0.0877365,113960.0,113950.0,0.07776602]
[1759275180399,0.77275156,113960.0,113950.0,0.07776602]
[1759275180602,0.7584881,113960.0,113950.0,0.07696602]
[1759275180795,0.087744,113950.0,113940.0,0.06940518]
[1759275181003,1.89657412,113950.0,113940.0,0.06940518]
[1759275181191,1.89657412,113950.0,113940.0,0.06860518]
[1759275181396,1.57235906,113950.0,113940.0,0.06900518]
[1759275181804,0.77275906,113950.0,113940.0,0.06900518]
[1759275182100,1.09697412,113950.0,113940.0,0.06900518]
[1759275182304,1.57235906,113950.0,113940.0,0.06900518]
[1759275183203,1.57235906,113950.0,113940.0,0.01448636]
[1759275183399,0.77275906,113950.0,113940.0,0.01448636]
[1759275183600,1.57239906,113950.0,113940.0,0.01448636]
[1759275184400,0.77275906,113950.0,113940.0,0.01448636]
[1759275184602,1.57243906,113950.0,113940.0,0.01448636]
[1759275185005,0.77275906,113950.0,113940.0,0.01448636]
[1759275185202,1.57243906,113950.0,113940.0,0.01408636]
[1759275185506,3.35207906,113950.0,113940.0,0.01448636]
[1759275186300,3.75207906,113950.0,113940.0,0.00049636]
[1759275186506,3.75207906,113950.0,113940.0,6e-08]
[1759275186507,4.07629412,113950.0,113940.0,6e-08]
[1759275186706,4.07629412,113950.0,113920.0,0.10541829]
[1759275186707,0.0877594,113930.0,113920.0,0.02649]
[1759275186909,1.93329446,113930.0,113920.0,0.02649]
[1759275187113,1.13357446,113930.0,113920.0,0.02649]
[1759275187406,1.92283032,113930.0,113920.0,0.02689]
[1759275187605,0.79889526,113930.0,113920.0,0.02689]
[1759275187908,1.12311032,113930.0,113920.0,0.0129]
[1759275188110,3.70315032,113930.0,113920.0,0.02649]
[1759275188408,4.02837416,113930.0,113920.0,0.02689]
[1759275188608,1.44833416,113930.0,113920.0,0.02689]
[1759275189011,4.02833416,113930.0,113920.0,0.02689]
[1759275189211,4.02837416,113930.0,113920.0,0.02689]
[1759275189412,4.02837416,113930.0,113920.0,0.02649]
[1759275189711,1.44833416,113930.0,113920.0,0.02649]
[1759275190010,4.02841416,113930.0,113920.0,0.03129]
[1759275190400,4.09980487,113930.0,113920.0,0.03129]
[1759275190601,4.08553879,113930.0,113920.0,0.03129]
[1759275190822,4.08553879,113930.0,113920.0,0.09414318]
[1759275192717,4.08553879,113930.0,113920.0,0.03129]
[1759275193509,1.50545879,113930.0,113920.0,0.03129]
[1759275193712,4.08569879,113930.0,113920.0,0.03129]
[1759275194113,4.08541879,113930.0,113920.0,0.03129]
[1759275196126,4.81013824,113930.0,113920.0,0.06285328]
[1759275196421,4.48541879,113930.0,113920.0,0.06285328]
[1759275196607,4.48541879,113930.0,113920.0,0.0004001]
[1759275196810,4.81013824,113930.0,113920.0,1e-07]
[1759275197011,0.0877671,113920.0,113910.0,0.07684318]
[1759275197212,1.42272545,113920.0,113910.0,0.07684318]
[1759275197814,3.678086,113920.0,113910.0,0.07684318]
[1759275199113,3.678086,113920.0,113910.0,0.01399]
[1759275199314,3.678086,113920.0,113910.0,0.07693454]
[1759275200423,4.00280545,113920.0,113910.0,0.07693454]
[1759275200624,3.98853829,113920.0,113910.0,0.08976567]
[1759275200824,1.40845829,113920.0,113910.0,0.09016567]
[1759275201127,3.99775427,113920.0,113910.0,0.07577567]
[1759275201419,4.39775427,113920.0,113910.0,0.07617567]
[1759275201625,4.39775427,113920.0,113910.0,0.07577567]
[1759275201825,4.39775427,113920.0,113910.0,0.07617567]
[1759275202025,1.81747427,113920.0,113910.0,0.01283113]
[1759275202228,4.39823427,113920.0,113910.0,0.01323113]
[1759275202623,1.81747427,113920.0,113910.0,0.01323113]
[1759275202817,4.39843427,113920.0,113910.0,0.01323113]
[1759275203024,1.81747427,113920.0,113910.0,0.01323113]
[1759275203226,1.81747427,113920.0,113910.0,0.07617567]
[1759275203227,4.39843427,113920.0,113910.0,0.07617567]
[1759275203629,4.39843427,113920.0,113910.0,0.01323113]
[1759275204226,4.39843427,113920.0,113910.0,0.07617567]
[1759275205526,1.81747427,113920.0,113910.0,0.01323113]
[1759275205728,3.42423592,113920.0,113910.0,0.01323113]
[1759275205920,4.39831427,113920.0,113910.0,0.01323113]
[1759275206125,4.39879427,113920.0,113910.0,0.01323113]
[1759275206428,4.39883427,113920.0,113910.0,0.01323113]
[1759275207228,4.39895427,113920.0,113910.0,0.01323113]
[1759275207829,1.81747427,113920.0,113910.0,0.01323113]
[1759275208030,4.39895427,113920.0,113910.0,0.01323113]
[1759275208418,1.81747427,113920.0,113910.0,0.01323113]
[1759275208624,4.39891427,113920.0,113910.0,0.01323113]
[1759275208825,4.39887427,113920.0,113910.0,0.01323113]
[1759275209731,1.81747427,113920.0,113910.0,0.01323113]
[1759275209924,4.39879427,113920.0,113910.0,0.01323113]
[1759275210932,4.38452605,113920.0,113910.0,0.07617567]
[1759275211928,1.80320605,113920.0,113910.0,0.07617567]
[1759275212127,4.38444605,113920.0,113910.0,0.07617567]
[1759275212527,1.80320605,113920.0,113910.0,0.07617567]
[1759275212728,4.38440605,113920.0,113910.0,0.07617567]
[1759275213537,4.38440605,113920.0,113910.0,0.09012567]
[1759275213930,4.38440605,113920.0,113910.0,0.07617567]
[1759275214131,4.38440605,113920.0,113910.0,0.01323113]
[1759275216331,4.38440605,113920.0,113910.0,0.09215942]
[1759275219539,3.98440605,113920.0,113910.0,0.09215942]
[1759275220538,3.98408605,113920.0,113910.0,0.09215942]
[1759275220937,3.96981783,113920.0,113910.0,0.09215942]
[1759275221541,1.38893783,113920.0,113910.0,0.09215942]
[1759275221735,3.96981783,113920.0,113910.0,0.09215942]
[1759275223741,3.96981783,113920.0,113910.0,0.10610942]
[1759275224545,3.96981783,113920.0,113910.0,0.09215942]
[1759275226244,3.96981783,113920.0,113910.0,0.05715942]
[1759275226646,0.0877745,113910.0,113900.0,0.01395]
[1759275226834,1.12037149,113910.0,113900.0,0.01395]
[1759275227340,1.0980134,113910.0,113900.0,0.01395]
[1759275228346,3.6789734,113910.0,113900.0,0.03504]
[1759275228845,3.6790534,113910.0,113900.0,0.03504]
[1759275229441,1.0980134,113910.0,113900.0,0.03504]
[1759275229646,3.6790534,113910.0,113900.0,0.03504]
[1759275229948,1.0980134,113910.0,113900.0,0.03504]
[1759275230150,3.6790134,113910.0,113900.0,0.03504]
[1759275230648,1.0980134,113910.0,113900.0,0.03504]
[1759275231041,3.6789334,113910.0,113900.0,0.03504]
[1759275231749,1.0980134,113910.0,113900.0,0.03504]
[1759275231950,3.6789334,113910.0,113900.0,0.03504]
[1759275234750,1.0980134,113910.0,113900.0,0.03504]
[1759275235151,3.6789334,113910.0,113900.0,0.03504]
[1759275236754,3.6789334,113910.0,113900.0,0.01395]
[1759275238956,3.6789334,113910.0,113900.0,0.03598]
[1759275241655,3.0294945,113910.0,113900.0,0.03598]
[1759275241857,0.4485745,113910.0,113900.0,0.84848065]
[1759275242054,0.3608,113910.0,113900.0,1.1732001]
[1759275242252,0.3608,113910.0,113900.0,1.1732011]
[1759275242253,1.2489345,113910.0,113900.0,1.1732011]
[1759275242452,1.2489345,113910.0,113900.0,0.84848165]
[1759275242453,1.57365395,113910.0,113900.0,0.84848165]
[1759275243056,1.2489343,113910.0,113900.0,1.1732011]
[1759275243260,1.2489343,113910.0,113900.0,0.84848165]
[1759275243756,0.8882143,113910.0,113900.0,0.84848165]
[1759275244361,0.41249125,113920.0,113910.0,0.1225543]
[1759275244553,1.21285125,113920.0,113910.0,0.44727375]
[1759275245754,1.21285125,113920.0,113910.0,0.1225543]
[1759275246355,0.41249125,113920.0,113910.0,0.1225543]
[1759275246657,0.41249125,113920.0,113910.0,0.45599755]
[1759275246658,1.21321125,113920.0,113910.0,0.45599755]
[1759275246857,0.41249125,113920.0,113910.0,0.45599755]
[1759275247058,1.21325125,113920.0,113910.0,0.45599755]
[1759275248156,0.41249125,113920.0,113910.0,0.45599755]
[1759275248357,1.21305623,113920.0,113910.0,0.1312781]
[1759275249061,0.8884118,113920.0,113910.0,0.1312781]
[1759275249263,1.21305623,113920.0,113910.0,0.1312781]
[1759275249464,0.0877718,113920.0,113910.0,0.85592253]
[1759275249762,0.84466945,113930.0,113920.0,0.1225468]
[1759275249763,7.041e-05,113930.0,113920.0,0.1225468]
[1759275249963,0.80079041,113930.0,113920.0,0.84719123]
[1759275250261,0.88854951,113930.0,113920.0,0.84719123]
[1759275256765,0.88854951,113930.0,113920.0,0.03478]
[1759275256766,1.57399394,113930.0,113920.0,0.03478]
[1759275268271,0.77327394,113930.0,113920.0,0.03478]
[1759275268474,1.57331394,113930.0,113920.0,0.03478]
[1759275271474,1.57327394,113930.0,113920.0,0.03478]
[1759275275365,1.57327394,113930.0,113920.0,0.01275]
[1759275275877,1.57327394,113930.0,113920.0,0.03498]
[1759275276273,1.57327394,113930.0,113920.0,0.01275]
[1759275276676,1.97327394,113930.0,113920.0,0.01275]
[1759275276881,1.99560442,113930.0,113920.0,0.01275]
[1759275277180,0.0877672,113920.0,113910.0,0.07593477]
[1759275277376,0.75894264,113920.0,113910.0,0.01315]
[1759275279081,1.48358707,113920.0,113910.0,0.01275]
[1759275279282,1.48358707,113920.0,113910.0,0.01315]
[1759275279480,1.08358707,113920.0,113910.0,0.01315]
[1759275279681,1.08358707,113920.0,113910.0,0.01275]
[1759275279884,1.08358707,113920.0,113910.0,0.01315]
[1759275281188,0.0877749,113910.0,113900.0,0.07793477]
[1759275281385,1.89786376,113910.0,113900.0,0.01475]
[1759275281691,0.0877827,113900.0,113890.0,0.07717477]
[1759275281895,0.77333661,113900.0,113890.0,0.07797477]
[1759275282190,1.57337661,113900.0,113890.0,0.09940477]
[1759275282390,1.57337661,113900.0,113890.0,0.09980477]
[1759275283185,0.77333661,113900.0,113890.0,0.09980477]
[1759275283386,1.57337661,113900.0,113890.0,0.03662]
[1759275284787,1.57337661,113900.0,113890.0,0.01439]
[1759275285193,1.57337661,113900.0,113890.0,0.01399]
[1759275285394,1.57337661,113900.0,113890.0,0.01439]
[1759275285395,1.64335387,113900.0,113890.0,0.01439]
[1759275285788,1.65232009,113900.0,113890.0,0.01439]
[1759275287995,0.85228009,113900.0,113890.0,0.01439]
[1759275288294,1.65236009,113900.0,113890.0,0.01439]
[1759275288684,1.65236009,113900.0,113890.0,0.01399]